[Event "Titled Tuesday Blitz April 18 Early 2023"]
[White "Chirivi C, Jenny Astrid"]
[Black "Orujov2008"]
[WhiteFideId "4403061"]
[WhiteElo "2001"]
[BlackElo "2437"]
[Result "1-0"]
[Round "02"]
[TimeControl "180+2"]
[Date "2023.04.18"]
[WhiteClock "0:00:15"]
[BlackClock "0:00:01"]

1. d4 {[%clk 0:03:00]}  Nf6 {[%clk 0:02:59]} 2. c4 {[%clk 0:02:59]}  e6 {[%clk 0:03:00]} 3. Nc3 {[%clk 0:02:59]}  Bb4 {[%clk 0:02:59]} 4. Qc2 {[%clk 0:03:00]}  b6 {[%clk 0:02:59]} 5. a3 {[%clk 0:02:57]}  Bxc3+ {[%clk 0:02:56]} 6. Qxc3 {[%clk 0:02:56]}  c5 {[%clk 0:02:52]} 7. Nf3 {[%clk 0:02:42]}  cxd4 {[%clk 0:02:51]} 8. Nxd4 {[%clk 0:02:42]}  Bb7 {[%clk 0:02:51]} 9. e3 {[%clk 0:02:38]}  d5 {[%clk 0:02:50]} 10. cxd5 {[%clk 0:02:25]}  Nxd5 {[%clk 0:02:49]} 11. Bb5+ {[%clk 0:02:24]}  Nd7 {[%clk 0:02:49]} 12. Qc2 {[%clk 0:02:14]}  O-O {[%clk 0:02:45]} 13. O-O {[%clk 0:02:12]}  Rc8 {[%clk 0:02:43]} 14. Qe2 {[%clk 0:02:09]}  Nc5 {[%clk 0:02:41]} 15. Bd2 {[%clk 0:01:59]}  a6 {[%clk 0:02:40]} 16. Bc4 {[%clk 0:01:54]}  b5 {[%clk 0:02:40]} 17. Ba2 {[%clk 0:01:52]}  Nf6 {[%clk 0:02:41]} 18. Rac1 {[%clk 0:01:50]}  Nfe4 {[%clk 0:02:35]} 19. Bb4 {[%clk 0:01:44]}  Qb6 {[%clk 0:01:58]} 20. Rfd1 {[%clk 0:01:42]}  a5 {[%clk 0:01:54]} 21. Be1 {[%clk 0:01:42]}  b4 {[%clk 0:01:53]} 22. axb4 {[%clk 0:01:41]}  axb4 {[%clk 0:01:54]} 23. f3 {[%clk 0:01:40]}  Nf6 {[%clk 0:01:51]} 24. Kh1 {[%clk 0:01:34]}  Rfd8 {[%clk 0:01:51]} 25. e4 {[%clk 0:01:22]}  e5 {[%clk 0:01:39]} 26. Nf5 {[%clk 0:01:21]}  b3 {[%clk 0:01:35]} 27. Ne7+ {[%clk 0:01:17]}  Kf8 {[%clk 0:01:34]} 28. Nxc8 {[%clk 0:01:17]}  Rxc8 {[%clk 0:01:34]} 29. Bb1 {[%clk 0:01:15]}  Ne6 {[%clk 0:01:22]} 30. Bf2 {[%clk 0:01:13]}  Qa5 {[%clk 0:01:18]} 31. Rxc8+ {[%clk 0:01:13]}  Bxc8 {[%clk 0:01:19]} 32. Qc4 {[%clk 0:01:09]}  Ba6 {[%clk 0:01:03]} 33. Qxb3 {[%clk 0:01:08]}  g6 {[%clk 0:01:02]} 34. h3 {[%clk 0:01:04]}  Kg7 {[%clk 0:01:00]} 35. Bd3 {[%clk 0:01:01]}  Bc8 {[%clk 0:00:52]} 36. Bc4 {[%clk 0:00:59]}  Qc7 {[%clk 0:00:34]} 37. Qc3 {[%clk 0:00:49]}  Nf4 {[%clk 0:00:29]} 38. Ba2 {[%clk 0:00:41]}  Qb7 {[%clk 0:00:20]} 39. Bc4 {[%clk 0:00:32]}  h5 {[%clk 0:00:15]} 40. b3 {[%clk 0:00:32]}  Qc7 {[%clk 0:00:14]} 41. Qa1 {[%clk 0:00:30]}  Bd7 {[%clk 0:00:09]} 42. Bg3 {[%clk 0:00:29]}  Qc8 {[%clk 0:00:07]} 43. Qxe5 {[%clk 0:00:26]}  Ne6 {[%clk 0:00:04]} 44. Bxe6 {[%clk 0:00:24]}  Bxe6 {[%clk 0:00:05]} 45. Bh4 {[%clk 0:00:23]}  Bxh3 {[%clk 0:00:04]} 46. Qxf6+ {[%clk 0:00:22]}  Kh7 {[%clk 0:00:02]} 47. Qxf7+ {[%clk 0:00:22]}  Kh6 {[%clk 0:00:02]} 48. Qf4+ {[%clk 0:00:21]}  Kh7 {[%clk 0:00:02]} 49. Qg3 {[%clk 0:00:20]}  Be6 {[%clk 0:00:02]} 50. b4 {[%clk 0:00:19]}  Bf7 {[%clk 0:00:02]} 51. Bf6 {[%clk 0:00:18]}  Qc2 {[%clk 0:00:02]} 52. Rg1 {[%clk 0:00:17]}  Qb3 {[%clk 0:00:02]} 53. Be7 {[%clk 0:00:16]}  Qe6 {[%clk 0:00:01]} 54. Qg5 {[%clk 0:00:15]} 1-0


[Site "https://www.chess.com"]

[Event "Titled Tuesday Blitz April 18 Early 2023"]
[White "Topalov, Aleksandar"]
[Black "Osuna Vega, Enrique"]
[WhiteFideId "925659"]
[BlackFideId "2219549"]
[WhiteElo "2151"]
[BlackElo "2121"]
[Result "1-0"]
[Round "02"]
[TimeControl "180+2"]
[Date "2023.04.18"]
[WhiteClock "0:02:05"]
[BlackClock "0:01:10"]

1. b3 {[%clk 0:02:55]}  e5 {[%clk 0:02:58]} 2. Bb2 {[%clk 0:02:53]}  Nc6 {[%clk 0:02:56]} 3. c4 {[%clk 0:02:53]}  g6 {[%clk 0:02:54]} 4. Nc3 {[%clk 0:02:52]}  Bg7 {[%clk 0:02:53]} 5. g3 {[%clk 0:02:52]}  Nge7 {[%clk 0:02:53]} 6. Bg2 {[%clk 0:02:53]}  O-O {[%clk 0:02:52]} 7. a3 {[%clk 0:02:53]}  d6 {[%clk 0:02:43]} 8. e3 {[%clk 0:02:53]}  f5 {[%clk 0:02:41]} 9. Nge2 {[%clk 0:02:52]}  Be6 {[%clk 0:02:40]} 10. Nd5 {[%clk 0:02:52]}  Rc8 {[%clk 0:02:30]} 11. O-O {[%clk 0:02:50]}  Qe8 {[%clk 0:02:29]} 12. f4 {[%clk 0:02:45]}  Qf7 {[%clk 0:02:27]} 13. Nxe7+ {[%clk 0:02:42]}  Qxe7 {[%clk 0:02:25]} 14. Qc2 {[%clk 0:02:40]}  e4 {[%clk 0:02:21]} 15. Bxg7 {[%clk 0:02:39]}  Qxg7 {[%clk 0:02:22]} 16. d3 {[%clk 0:02:37]}  exd3 {[%clk 0:02:15]} 17. Qxd3 {[%clk 0:02:37]}  Rfe8 {[%clk 0:02:13]} 18. Nc3 {[%clk 0:02:37]}  Bf7 {[%clk 0:02:08]} 19. Rfe1 {[%clk 0:02:37]}  Qf6 {[%clk 0:01:58]} 20. e4 {[%clk 0:02:32]}  fxe4 {[%clk 0:01:56]} 21. Nxe4 {[%clk 0:02:29]}  Qd4+ {[%clk 0:01:54]} 22. Qxd4 {[%clk 0:02:20]}  Nxd4 {[%clk 0:01:54]} 23. Nf6+ {[%clk 0:02:20]}  Kf8 {[%clk 0:01:37]} 24. Nxe8 {[%clk 0:02:18]}  Nc2 {[%clk 0:01:36]} 25. Nf6 {[%clk 0:02:16]}  Nxa1 {[%clk 0:01:32]} 26. Rxa1 {[%clk 0:02:15]}  Kg7 {[%clk 0:01:30]} 27. Ne4 {[%clk 0:02:11]}  d5 {[%clk 0:01:25]} 28. cxd5 {[%clk 0:02:11]}  Bxd5 {[%clk 0:01:26]} 29. b4 {[%clk 0:02:09]}  b6 {[%clk 0:01:10]} 30. Rd1 {[%clk 0:02:05]} 1-0


[Site "https://www.chess.com"]

[Event "Titled Tuesday Blitz April 18 Early 2023"]
[White "Fabris, Alberto"]
[Black "Manukian, Artak"]
[WhiteFideId "801348"]
[BlackFideId "13301373"]
[WhiteElo "2120"]
[BlackElo "2130"]
[Result "0-1"]
[Round "02"]
[TimeControl "180+2"]
[Date "2023.04.18"]
[WhiteClock "0:00:03"]
[BlackClock "0:00:09"]

1. e4 {[%clk 0:03:00]}  c6 {[%clk 0:02:54]} 2. d4 {[%clk 0:02:59]}  d5 {[%clk 0:02:54]} 3. e5 {[%clk 0:03:00]}  Bf5 {[%clk 0:02:54]} 4. Ne2 {[%clk 0:02:59]}  e6 {[%clk 0:02:54]} 5. Ng3 {[%clk 0:02:59]}  Bg6 {[%clk 0:02:54]} 6. h4 {[%clk 0:02:59]}  h5 {[%clk 0:02:54]} 7. Be2 {[%clk 0:02:59]}  c5 {[%clk 0:02:51]} 8. c3 {[%clk 0:02:56]}  Nc6 {[%clk 0:02:49]} 9. Be3 {[%clk 0:02:41]}  Qb6 {[%clk 0:02:39]} 10. b3 {[%clk 0:02:39]}  cxd4 {[%clk 0:02:38]} 11. cxd4 {[%clk 0:02:38]}  Bb4+ {[%clk 0:02:30]} 12. Kf1 {[%clk 0:02:38]}  O-O-O {[%clk 0:02:20]} 13. a3 {[%clk 0:02:38]}  Be7 {[%clk 0:02:19]} 14. b4 {[%clk 0:02:38]}  Kb8 {[%clk 0:02:16]} 15. Nc3 {[%clk 0:02:37]}  Rc8 {[%clk 0:02:15]} 16. Na4 {[%clk 0:02:36]}  Qd8 {[%clk 0:02:15]} 17. Nc5 {[%clk 0:02:35]}  Bxh4 {[%clk 0:02:07]} 18. Nxh5 {[%clk 0:02:26]}  Bg5 {[%clk 0:01:53]} 19. Ng3 {[%clk 0:01:58]}  Rxh1+ {[%clk 0:01:49]} 20. Nxh1 {[%clk 0:01:58]}  Bxe3 {[%clk 0:01:50]} 21. fxe3 {[%clk 0:01:58]}  Qg5 {[%clk 0:01:43]} 22. Qd2 {[%clk 0:01:55]}  Nh6 {[%clk 0:01:41]} 23. b5 {[%clk 0:01:50]}  Ne7 {[%clk 0:01:39]} 24. b6 {[%clk 0:01:46]}  axb6 {[%clk 0:01:19]} 25. Nd7+ {[%clk 0:01:42]}  Kc7 {[%clk 0:01:18]} 26. Bb5 {[%clk 0:01:36]}  Nc6 {[%clk 0:01:10]} 27. Nxb6 {[%clk 0:01:08]}  Kxb6 {[%clk 0:00:59]} 28. Bxc6 {[%clk 0:01:04]}  Rxc6 {[%clk 0:00:52]} 29. Qb4+ {[%clk 0:00:54]}  Kc7 {[%clk 0:00:52]} 30. Qa5+ {[%clk 0:00:52]}  Kd7 {[%clk 0:00:49]} 31. Qb5 {[%clk 0:00:46]}  Qxe3 {[%clk 0:00:31]} 32. Qxb7+ {[%clk 0:00:44]}  Rc7 {[%clk 0:00:20]} 33. Qb5+ {[%clk 0:00:40]}  Kc8 {[%clk 0:00:16]} 34. Qe8+ {[%clk 0:00:37]}  Kb7 {[%clk 0:00:16]} 35. Qb5+ {[%clk 0:00:37]}  Ka7 {[%clk 0:00:16]} 36. Qa5+ {[%clk 0:00:36]}  Kb8 {[%clk 0:00:16]} 37. Qb5+ {[%clk 0:00:26]}  Rb7 {[%clk 0:00:13]} 38. Qe8+ {[%clk 0:00:25]}  Kc7 {[%clk 0:00:11]} 39. Qe7+ {[%clk 0:00:23]}  Kb6 {[%clk 0:00:10]} 40. Qc5+ {[%clk 0:00:19]}  Ka6 {[%clk 0:00:10]} 41. Qc6+ {[%clk 0:00:18]}  Ka7 {[%clk 0:00:11]} 42. Qc5+ {[%clk 0:00:17]}  Kb8 {[%clk 0:00:10]} 43. Qf8+ {[%clk 0:00:15]}  Kc7 {[%clk 0:00:10]} 44. Qd6+ {[%clk 0:00:14]}  Kc8 {[%clk 0:00:09]} 45. Qf8+ {[%clk 0:00:14]}  Kd7 {[%clk 0:00:09]} 46. Qd6+ {[%clk 0:00:12]}  Ke8 {[%clk 0:00:09]} 47. Qc6+ {[%clk 0:00:11]}  Rd7 {[%clk 0:00:09]} 48. Qc8+ {[%clk 0:00:09]}  Rd8 {[%clk 0:00:09]} 49. Rd1 {[%clk 0:00:03]} 0-1


[Site "https://www.chess.com"]

[Event "Titled Tuesday Blitz April 18 Early 2023"]
[White "Garakov, Mikhael"]
[Black "Flis, Pawel"]
[WhiteFideId "4169034"]
[BlackFideId "1112864"]
[WhiteElo "2347"]
[BlackElo "1822"]
[Result "1-0"]
[Round "02"]
[TimeControl "180+2"]
[Date "2023.04.18"]
[WhiteClock "0:00:35"]
[BlackClock "0:00:03"]

1. e4 {[%clk 0:03:00]}  c5 {[%clk 0:02:54]} 2. Nf3 {[%clk 0:03:00]}  d6 {[%clk 0:02:54]} 3. d4 {[%clk 0:02:59]}  Nf6 {[%clk 0:02:54]} 4. Nc3 {[%clk 0:02:59]}  cxd4 {[%clk 0:02:54]} 5. Nxd4 {[%clk 0:03:00]}  a6 {[%clk 0:02:55]} 6. f4 {[%clk 0:03:00]}  e5 {[%clk 0:02:54]} 7. Nf3 {[%clk 0:03:00]}  Nbd7 {[%clk 0:02:54]} 8. a4 {[%clk 0:03:00]}  Be7 {[%clk 0:02:54]} 9. Bc4 {[%clk 0:03:00]}  O-O {[%clk 0:02:50]} 10. O-O {[%clk 0:02:59]}  b6 {[%clk 0:02:46]} 11. Nd5 {[%clk 0:01:52]}  Bb7 {[%clk 0:02:31]} 12. fxe5 {[%clk 0:01:49]}  dxe5 {[%clk 0:02:27]} 13. Qe2 {[%clk 0:01:39]}  Bc5+ {[%clk 0:02:23]} 14. Kh1 {[%clk 0:01:38]}  Nxd5 {[%clk 0:02:18]} 15. exd5 {[%clk 0:01:37]}  Bd6 {[%clk 0:02:11]} 16. Ng5 {[%clk 0:01:33]}  h6 {[%clk 0:02:08]} 17. Ne4 {[%clk 0:01:30]}  Nc5 {[%clk 0:01:59]} 18. Nf6+ {[%clk 0:01:08]}  gxf6 {[%clk 0:01:23]} 19. Bxh6 {[%clk 0:01:07]}  Bc8 {[%clk 0:01:07]} 20. Ra3 {[%clk 0:01:05]}  e4 {[%clk 0:01:03]} 21. Qh5 {[%clk 0:00:37]}  Bd7 {[%clk 0:00:33]} 22. Rh3 {[%clk 0:00:37]}  Bxh3 {[%clk 0:00:26]} 23. gxh3 {[%clk 0:00:36]}  Bxh2 {[%clk 0:00:11]} 24. Kxh2 {[%clk 0:00:33]}  Qd6+ {[%clk 0:00:11]} 25. Kh1 {[%clk 0:00:34]}  Qg3 {[%clk 0:00:08]} 26. Rg1 {[%clk 0:00:33]}  Qxg1+ {[%clk 0:00:08]} 27. Kxg1 {[%clk 0:00:34]}  Rfe8 {[%clk 0:00:04]} 28. Qg4+ {[%clk 0:00:34]}  Kh7 {[%clk 0:00:03]} 29. Qg7# {[%clk 0:00:35]} 1-0


[Site "https://www.chess.com"]

[Event "Titled Tuesday Blitz April 18 Early 2023"]
[White "Winkels, Marcel"]
[Black "Jimenez Jimenez, Leandro"]
[WhiteFideId "1003887"]
[BlackFideId "6415253"]
[WhiteElo "1900"]
[BlackElo "2263"]
[Result "0-1"]
[Round "02"]
[TimeControl "180+2"]
[Date "2023.04.18"]
[WhiteClock "0:00:02"]
[BlackClock "0:00:12"]

1. d4 {[%clk 0:03:00]}  d5 {[%clk 0:02:59]} 2. Nc3 {[%clk 0:03:01]}  c5 {[%clk 0:02:53]} 3. e4 {[%clk 0:02:53]}  dxe4 {[%clk 0:02:41]} 4. dxc5 {[%clk 0:02:42]}  Qxd1+ {[%clk 0:02:39]} 5. Kxd1 {[%clk 0:02:39]}  Bg4+ {[%clk 0:02:37]} 6. Be2 {[%clk 0:02:38]}  Bf5 {[%clk 0:02:31]} 7. g4 {[%clk 0:02:34]}  Bg6 {[%clk 0:02:31]} 8. Be3 {[%clk 0:02:25]}  Nc6 {[%clk 0:02:26]} 9. h4 {[%clk 0:02:14]}  O-O-O+ {[%clk 0:02:24]} 10. Ke1 {[%clk 0:02:13]}  h5 {[%clk 0:01:58]} 11. g5 {[%clk 0:02:02]}  e6 {[%clk 0:01:36]} 12. Nh3 {[%clk 0:01:58]}  Bf5 {[%clk 0:01:28]} 13. Nf4 {[%clk 0:01:57]}  Nge7 {[%clk 0:01:28]} 14. Nxh5 {[%clk 0:01:52]}  e5 {[%clk 0:01:24]} 15. Ng3 {[%clk 0:01:50]}  Be6 {[%clk 0:01:21]} 16. Rd1 {[%clk 0:01:41]}  Nd4 {[%clk 0:01:05]} 17. Bxd4 {[%clk 0:01:34]}  exd4 {[%clk 0:01:03]} 18. Ncxe4 {[%clk 0:01:35]}  Nd5 {[%clk 0:01:03]} 19. a3 {[%clk 0:01:21]}  Nf4 {[%clk 0:00:58]} 20. b4 {[%clk 0:01:12]}  Rxh4 {[%clk 0:00:52]} 21. Rxh4 {[%clk 0:01:11]}  Ng2+ {[%clk 0:00:51]} 22. Kf1 {[%clk 0:01:11]}  Nxh4 {[%clk 0:00:52]} 23. c3 {[%clk 0:00:55]}  dxc3 {[%clk 0:00:28]} 24. Rxd8+ {[%clk 0:00:53]}  Kxd8 {[%clk 0:00:29]} 25. Nxc3 {[%clk 0:00:53]}  Be7 {[%clk 0:00:28]} 26. Nce4 {[%clk 0:00:51]}  Kc7 {[%clk 0:00:24]} 27. f4 {[%clk 0:00:39]}  b6 {[%clk 0:00:23]} 28. cxb6+ {[%clk 0:00:35]}  Kxb6 {[%clk 0:00:24]} 29. Nc3 {[%clk 0:00:32]}  Bd6 {[%clk 0:00:18]} 30. f5 {[%clk 0:00:25]}  Nxf5 {[%clk 0:00:17]} 31. Nxf5 {[%clk 0:00:24]}  Bxf5 {[%clk 0:00:18]} 32. Nd5+ {[%clk 0:00:21]}  Kc6 {[%clk 0:00:19]} 33. Ne3 {[%clk 0:00:21]}  Be6 {[%clk 0:00:18]} 34. Bd3 {[%clk 0:00:20]}  Bf4 {[%clk 0:00:17]} 35. Nc4 {[%clk 0:00:16]}  Bxg5 {[%clk 0:00:17]} 36. Ke2 {[%clk 0:00:15]}  Be7 {[%clk 0:00:15]} 37. Ne3 {[%clk 0:00:13]}  a5 {[%clk 0:00:15]} 38. b5+ {[%clk 0:00:12]}  Kb6 {[%clk 0:00:14]} 39. a4 {[%clk 0:00:12]}  Bb3 {[%clk 0:00:14]} 40. Nc4+ {[%clk 0:00:11]}  Bxc4 {[%clk 0:00:12]} 41. Bxc4 {[%clk 0:00:11]}  f5 {[%clk 0:00:13]} 42. Kf3 {[%clk 0:00:11]}  Bd6 {[%clk 0:00:13]} 43. Bd5 {[%clk 0:00:09]}  Kc5 {[%clk 0:00:12]} 44. Bc6 {[%clk 0:00:09]}  Kd4 {[%clk 0:00:13]} 45. b6 {[%clk 0:00:08]}  Ke5 {[%clk 0:00:13]} 46. b7 {[%clk 0:00:07]}  g5 {[%clk 0:00:13]} 47. Kf2 {[%clk 0:00:06]}  g4 {[%clk 0:00:14]} 48. Kg2 {[%clk 0:00:06]}  Kf4 {[%clk 0:00:14]} 49. Kf2 {[%clk 0:00:05]}  Kg5 {[%clk 0:00:14]} 50. Kg2 {[%clk 0:00:05]}  f4 {[%clk 0:00:15]} 51. Kf2 {[%clk 0:00:04]}  f3 {[%clk 0:00:12]} 52. Bd5 {[%clk 0:00:02]}  Kf4 {[%clk 0:00:12]} 53. Kf1 {[%clk 0:00:02]}  g3 {[%clk 0:00:12]} 54. Kg1 {[%clk 0:00:02]}  g2 {[%clk 0:00:12]} 0-1


[Site "https://www.chess.com"]

[Event "Titled Tuesday Blitz April 18 Early 2023"]
[White "Wahedi, Ahmad Siar"]
[Black "Sandholm, Klas"]
[WhiteFideId "4651260"]
[BlackFideId "510203"]
[WhiteElo "2251"]
[BlackElo "2106"]
[Result "1/2-1/2"]
[Round "02"]
[TimeControl "180+2"]
[Date "2023.04.18"]
[WhiteClock "0:00:19"]
[BlackClock "0:00:06"]

1. e4 {[%clk 0:03:00]}  e5 {[%clk 0:02:59]} 2. Nf3 {[%clk 0:03:00]}  d5 {[%clk 0:03:00]} 3. Nxe5 {[%clk 0:02:57]}  Bd6 {[%clk 0:02:59]} 4. d4 {[%clk 0:02:56]}  dxe4 {[%clk 0:02:59]} 5. Nc4 {[%clk 0:02:55]}  Nf6 {[%clk 0:02:59]} 6. Nxd6+ {[%clk 0:02:51]}  Qxd6 {[%clk 0:03:00]} 7. Nc3 {[%clk 0:02:50]}  Nc6 {[%clk 0:02:59]} 8. Be3 {[%clk 0:02:49]}  Bg4 {[%clk 0:02:58]} 9. Qd2 {[%clk 0:02:48]}  O-O-O {[%clk 0:02:57]} 10. h3 {[%clk 0:02:47]}  Bh5 {[%clk 0:02:56]} 11. g4 {[%clk 0:02:47]}  Bg6 {[%clk 0:02:55]} 12. O-O-O {[%clk 0:02:44]}  h5 {[%clk 0:02:52]} 13. g5 {[%clk 0:02:31]}  Nd5 {[%clk 0:02:51]} 14. Nxd5 {[%clk 0:02:29]}  Qxd5 {[%clk 0:02:52]} 15. Kb1 {[%clk 0:02:29]}  h4 {[%clk 0:02:41]} 16. Be2 {[%clk 0:02:23]}  Kb8 {[%clk 0:02:40]} 17. c4 {[%clk 0:02:19]}  Qe6 {[%clk 0:02:33]} 18. d5 {[%clk 0:02:18]}  Qe7 {[%clk 0:02:32]} 19. Qc3 {[%clk 0:02:12]}  Ne5 {[%clk 0:02:29]} 20. Bd4 {[%clk 0:01:59]}  Rhe8 {[%clk 0:02:28]} 21. Bxe5 {[%clk 0:01:48]}  Qxe5 {[%clk 0:02:28]} 22. Qxe5 {[%clk 0:01:48]}  Rxe5 {[%clk 0:02:29]} 23. Kc1 {[%clk 0:01:48]}  Rxg5 {[%clk 0:02:28]} 24. Kd2 {[%clk 0:01:47]}  c6 {[%clk 0:02:20]} 25. Ke3 {[%clk 0:01:46]}  cxd5 {[%clk 0:02:19]} 26. Rd4 {[%clk 0:01:44]}  Rc8 {[%clk 0:01:59]} 27. Bg4 {[%clk 0:01:33]}  Rxc4 {[%clk 0:01:57]} 28. Rxc4 {[%clk 0:01:29]}  dxc4 {[%clk 0:01:58]} 29. Rc1 {[%clk 0:01:29]}  Rc5 {[%clk 0:01:45]} 30. Rd1 {[%clk 0:01:25]}  f5 {[%clk 0:01:41]} 31. Be2 {[%clk 0:01:24]}  Kc7 {[%clk 0:01:39]} 32. Kf4 {[%clk 0:01:21]}  Bf7 {[%clk 0:01:35]} 33. a3 {[%clk 0:01:21]}  g6 {[%clk 0:01:34]} 34. Rd4 {[%clk 0:01:15]}  c3 {[%clk 0:01:34]} 35. bxc3 {[%clk 0:01:14]}  Rxc3 {[%clk 0:01:35]} 36. a4 {[%clk 0:01:14]}  Rxh3 {[%clk 0:01:32]} 37. Bb5 {[%clk 0:01:14]}  Be6 {[%clk 0:01:28]} 38. Ke5 {[%clk 0:01:14]}  Bc8 {[%clk 0:01:27]} 39. Rc4+ {[%clk 0:01:14]}  Kb8 {[%clk 0:01:26]} 40. Rd4 {[%clk 0:01:10]}  e3 {[%clk 0:01:22]} 41. fxe3 {[%clk 0:01:10]}  Rxe3+ {[%clk 0:01:23]} 42. Kf6 {[%clk 0:01:10]}  Rg3 {[%clk 0:01:20]} 43. Rxh4 {[%clk 0:01:08]}  g5 {[%clk 0:01:18]} 44. Rh8 {[%clk 0:01:08]}  f4 {[%clk 0:01:16]} 45. Bd7 {[%clk 0:01:07]}  Rc3 {[%clk 0:01:14]} 46. Kxg5 {[%clk 0:01:05]}  Rc4 {[%clk 0:01:13]} 47. Rf8 {[%clk 0:01:03]}  b6 {[%clk 0:01:13]} 48. Bb5 {[%clk 0:00:59]}  Rc5+ {[%clk 0:01:02]} 49. Kxf4 {[%clk 0:00:59]}  Kc7 {[%clk 0:01:02]} 50. Rf7+ {[%clk 0:00:56]}  Kb8 {[%clk 0:01:02]} 51. Rf8 {[%clk 0:00:55]}  Kc7 {[%clk 0:01:03]} 52. Ke4 {[%clk 0:00:54]}  a6 {[%clk 0:01:02]} 53. Rf7+ {[%clk 0:00:54]}  Kb8 {[%clk 0:01:02]} 54. Bd3 {[%clk 0:00:52]}  Bb7+ {[%clk 0:00:59]} 55. Kd4 {[%clk 0:00:52]}  Rd5+ {[%clk 0:00:58]} 56. Kc3 {[%clk 0:00:52]}  Rc5+ {[%clk 0:00:58]} 57. Kd4 {[%clk 0:00:51]}  Rd5+ {[%clk 0:00:58]} 58. Kc3 {[%clk 0:00:50]}  Rc5+ {[%clk 0:00:57]} 59. Kb2 {[%clk 0:00:50]}  Rh5 {[%clk 0:00:50]} 60. Rf6 {[%clk 0:00:47]}  Kc7 {[%clk 0:00:48]} 61. Rf7+ {[%clk 0:00:47]}  Kb8 {[%clk 0:00:48]} 62. Bc2 {[%clk 0:00:43]}  Rh4 {[%clk 0:00:48]} 63. Kc3 {[%clk 0:00:43]}  Bd5 {[%clk 0:00:43]} 64. Rd7 {[%clk 0:00:40]}  Bc6 {[%clk 0:00:40]} 65. Rd6 {[%clk 0:00:33]}  Kc7 {[%clk 0:00:39]} 66. Rg6 {[%clk 0:00:33]}  Bxa4 {[%clk 0:00:38]} 67. Rg7+ {[%clk 0:00:32]}  Kb8 {[%clk 0:00:31]} 68. Bd3 {[%clk 0:00:30]}  a5 {[%clk 0:00:28]} 69. Ba6 {[%clk 0:00:29]}  Bc6 {[%clk 0:00:22]} 70. Rg6 {[%clk 0:00:29]}  Kc7 {[%clk 0:00:21]} 71. Rg7+ {[%clk 0:00:29]}  Kd6 {[%clk 0:00:21]} 72. Rg6+ {[%clk 0:00:29]}  Kc5 {[%clk 0:00:20]} 73. Rg5+ {[%clk 0:00:29]}  Bd5 {[%clk 0:00:19]} 74. Bb7 {[%clk 0:00:29]}  Rd4 {[%clk 0:00:18]} 75. Ba6 {[%clk 0:00:25]}  a4 {[%clk 0:00:16]} 76. Rg7 {[%clk 0:00:20]}  b5 {[%clk 0:00:16]} 77. Bxb5 {[%clk 0:00:19]}  Rh4 {[%clk 0:00:13]} 78. Bxa4 {[%clk 0:00:17]}  Rxa4 {[%clk 0:00:12]} 79. Rc7+ {[%clk 0:00:17]}  Kd6 {[%clk 0:00:12]} 80. Rc8 {[%clk 0:00:17]}  Ra3+ {[%clk 0:00:12]} 81. Kd4 {[%clk 0:00:17]}  Ra4+ {[%clk 0:00:12]} 82. Kd3 {[%clk 0:00:17]}  Ra3+ {[%clk 0:00:12]} 83. Kd4 {[%clk 0:00:17]}  Ra4+ {[%clk 0:00:12]} 84. Kc3 {[%clk 0:00:18]}  Ke5 {[%clk 0:00:12]} 85. Re8+ {[%clk 0:00:17]}  Be6 {[%clk 0:00:12]} 86. Kd3 {[%clk 0:00:16]}  Rb4 {[%clk 0:00:12]} 87. Kc3 {[%clk 0:00:17]}  Rc4+ {[%clk 0:00:12]} 88. Kd3 {[%clk 0:00:17]}  Rb4 {[%clk 0:00:11]} 89. Kc3 {[%clk 0:00:17]}  Rb3+ {[%clk 0:00:11]} 90. Kc2 {[%clk 0:00:17]}  Re3 {[%clk 0:00:11]} 91. Kd2 {[%clk 0:00:17]}  Re4 {[%clk 0:00:10]} 92. Kd3 {[%clk 0:00:17]}  Rd4+ {[%clk 0:00:10]} 93. Kc3 {[%clk 0:00:18]}  Rh4 {[%clk 0:00:09]} 94. Rf8 {[%clk 0:00:15]}  Ke4 {[%clk 0:00:06]} 95. Re8 {[%clk 0:00:15]}  Ke5 {[%clk 0:00:05]} 96. Kd3 {[%clk 0:00:15]}  Rh3+ {[%clk 0:00:05]} 97. Kd2 {[%clk 0:00:15]}  Rh4 {[%clk 0:00:03]} 98. Kc3 {[%clk 0:00:15]}  Rh3+ {[%clk 0:00:03]} 99. Kb4 {[%clk 0:00:15]}  Rh4+ {[%clk 0:00:04]} 100. Kc5 {[%clk 0:00:15]}  Rh3 {[%clk 0:00:04]} 101. Kb4 {[%clk 0:00:14]}  Rh4+ {[%clk 0:00:04]} 102. Kc3 {[%clk 0:00:14]}  Rh3+ {[%clk 0:00:05]} 103. Kd2 {[%clk 0:00:14]}  Rh2+ {[%clk 0:00:05]} 104. Ke3 {[%clk 0:00:15]}  Rh3+ {[%clk 0:00:05]} 105. Kf2 {[%clk 0:00:15]}  Rh2+ {[%clk 0:00:06]} 106. Kg3 {[%clk 0:00:16]}  Rb2 {[%clk 0:00:05]} 107. Kf3 {[%clk 0:00:16]}  Rb3+ {[%clk 0:00:06]} 108. Ke2 {[%clk 0:00:16]}  Rb2+ {[%clk 0:00:05]} 109. Kd3 {[%clk 0:00:17]}  Rb3+ {[%clk 0:00:05]} 110. Ke2 {[%clk 0:00:17]}  Rb2+ {[%clk 0:00:05]} 111. Ke3 {[%clk 0:00:18]}  Rb3+ {[%clk 0:00:06]} 112. Kd2 {[%clk 0:00:19]}  Rb2+ {[%clk 0:00:06]} 113. Kc3 {[%clk 0:00:19]}  Rh2 {[%clk 0:00:06]} 114. Kd3 {[%clk 0:00:19]}  Rh3+ {[%clk 0:00:06]} 115. Kd2 {[%clk 0:00:19]} 1/2-1/2


[Site "https://www.chess.com"]

[Event "Titled Tuesday Blitz April 18 Early 2023"]
[White "Nikolova, Adriana"]
[Black "Hartikainen, Jarmo"]
[WhiteFideId "2908689"]
[BlackFideId "503134"]
[WhiteElo "2213"]
[BlackElo "2098"]
[Result "0-1"]
[Round "02"]
[TimeControl "180+2"]
[Date "2023.04.18"]
[WhiteClock "0:00:20"]
[BlackClock "0:00:06"]

1. e4 {[%clk 0:02:58]}  c5 {[%clk 0:02:59]} 2. Nf3 {[%clk 0:02:55]}  Nc6 {[%clk 0:02:59]} 3. d4 {[%clk 0:02:56]}  cxd4 {[%clk 0:02:59]} 4. Nxd4 {[%clk 0:02:57]}  Nf6 {[%clk 0:02:59]} 5. Nc3 {[%clk 0:02:57]}  d6 {[%clk 0:02:59]} 6. Bg5 {[%clk 0:02:54]}  Bd7 {[%clk 0:02:56]} 7. f4 {[%clk 0:02:52]}  a6 {[%clk 0:02:51]} 8. Qd2 {[%clk 0:02:53]}  Qc7 {[%clk 0:02:45]} 9. O-O-O {[%clk 0:02:53]}  O-O-O {[%clk 0:02:43]} 10. Bxf6 {[%clk 0:02:53]}  gxf6 {[%clk 0:02:43]} 11. Bc4 {[%clk 0:02:52]}  e6 {[%clk 0:02:30]} 12. f5 {[%clk 0:02:52]}  Nxd4 {[%clk 0:02:21]} 13. Qxd4 {[%clk 0:02:53]}  Be7 {[%clk 0:02:21]} 14. Rhf1 {[%clk 0:02:42]}  h5 {[%clk 0:02:08]} 15. Kb1 {[%clk 0:02:29]}  Kb8 {[%clk 0:02:08]} 16. Rf3 {[%clk 0:02:26]}  Rc8 {[%clk 0:01:41]} 17. Bb3 {[%clk 0:02:25]}  Qc5 {[%clk 0:01:26]} 18. Qd2 {[%clk 0:02:23]}  b5 {[%clk 0:01:05]} 19. Rd3 {[%clk 0:02:15]}  h4 {[%clk 0:00:56]} 20. a3 {[%clk 0:02:15]}  Rcg8 {[%clk 0:00:33]} 21. Rf3 {[%clk 0:02:04]}  Qe5 {[%clk 0:00:28]} 22. h3 {[%clk 0:02:03]}  Rg3 {[%clk 0:00:26]} 23. Rxg3 {[%clk 0:02:02]}  Qxg3 {[%clk 0:00:26]} 24. a4 {[%clk 0:01:42]}  Qe5 {[%clk 0:00:16]} 25. axb5 {[%clk 0:01:41]}  axb5 {[%clk 0:00:17]} 26. Qe3 {[%clk 0:01:31]}  Kb7 {[%clk 0:00:16]} 27. Ne2 {[%clk 0:00:58]}  Rg8 {[%clk 0:00:15]} 28. Nf4 {[%clk 0:00:51]}  Bc6 {[%clk 0:00:09]} 29. fxe6 {[%clk 0:00:45]}  fxe6 {[%clk 0:00:10]} 30. Bxe6 {[%clk 0:00:40]}  Rg3 {[%clk 0:00:09]} 31. Qd2 {[%clk 0:00:40]}  Qxe4 {[%clk 0:00:08]} 32. Bd5 {[%clk 0:00:31]}  Bxd5 {[%clk 0:00:08]} 33. Nxd5 {[%clk 0:00:31]}  Bd8 {[%clk 0:00:06]} 34. Qf2 {[%clk 0:00:22]}  Rxg2 {[%clk 0:00:06]} 35. Qf1 {[%clk 0:00:20]}  Qxc2+ {[%clk 0:00:06]} 36. Ka1 {[%clk 0:00:20]}  Qxb2# {[%clk 0:00:06]} 0-1


[Site "https://www.chess.com"]